bitfinex/quotes_ETHUSD_20250913
["timestamp","ask_amount","ask_price","bid_price","bid_amount"]
[1757780249312,19.46332937,4625.2,4625.1,0.00467956]
[1757780249883,15.18932937,4625.2,4625.1,0.00467956]
[1757780250083,19.46432937,4625.2,4625.1,0.00467956]
[1757780250597,19.26613438,4625.2,4625.1,0.00467956]
[1757780251893,18.17593438,4625.2,4625.1,0.00467956]
[1757780252092,18.05700866,4625.2,4625.1,0.00467956]
[1757780252463,13.78300866,4625.2,4625.1,0.00467956]
[1757780252666,18.05700866,4625.2,4625.1,0.00467956]
[1757780253369,13.78300866,4625.2,4625.1,0.00467956]
[1757780253589,7.1,4625.2,4625.1,0.00467956]
[1757780253761,11.374,4625.2,4625.1,0.29087956]
[1757780254176,4.354,4625.2,4625.1,0.29087956]
[1757780254370,4.38102585,4625.2,4625.1,0.29087956]
[1757780254607,0.10702585,4625.2,4625.1,0.29087956]
[1757780254772,6.54309451,4625.2,4625.1,0.00467956]
[1757780254977,6.81996866,4625.2,4625.1,0.00467956]
[1757780255176,7.92809354,4625.2,4625.1,0.00467956]
[1757780255688,8.36839354,4625.2,4625.1,0.00467956]
[1757780256677,9.45759354,4625.2,4625.1,0.00467956]
[1757780256905,0.07332044,4624.3,4623.9,1.086]
[1757780257106,5.9590317,4624.2,4623.9,1.086]
[1757780257301,0.07332044,4624.1,4623.9,1.5466]
[1757780257501,4.30003287,4624.0,4623.9,1.5466]
[1757780257704,4.30003287,4624.0,4623.9,3.99547652]
[1757780257916,4.273,4624.0,4623.9,3.99547652]
[1757780258113,0.10035272,4624.1,4623.9,3.99547652]
[1757780258316,0.10035272,4624.1,4624.0,3.70922975]
[1757780258623,4.34532044,4624.1,4624.0,3.70922975]
[1757780258919,4.34532044,4624.1,4624.0,3.99542975]
[1757780261436,4.272,4624.1,4624.0,3.99542975]
[1757780262215,4.272,4624.1,4624.0,1.8328]
[1757780262419,4.272,4624.1,4624.0,3.99542975]
[1757780262658,4.272,4624.1,4624.0,1.8328]
[1757780262951,4.272,4624.1,4624.0,3.99542975]
[1757780263157,4.272,4624.1,4624.0,1.8328]
[1757780263372,4.29903228,4624.1,4624.0,2.44882975]
[1757780263856,4.29903228,4624.1,4624.0,0.2862]
[1757780264054,4.29903228,4624.1,4623.6,0.4606]
[1757780264356,4.29903228,4624.1,4623.0,0.108]
[1757780264357,0.108,4623.8,4623.4,2.16286702]
[1757780264563,4.27,4623.7,4623.5,2.16286059]
[1757780264771,4.29703462,4623.7,4623.6,0.2862]
[1757780264929,4.29703462,4623.7,4623.6,2.44901685]
[1757780265129,4.27,4623.7,4623.6,2.44901685]
[1757780265333,0.02703228,4624.1,4624.0,2.16262975]
[1757780265658,4.29703228,4624.1,4624.0,2.16262975]
[1757780265954,0.02703228,4624.1,4624.0,2.45342975]
[1757780266162,4.29603228,4624.1,4624.0,2.88302975]
[1757780266463,4.29603228,4624.1,4624.0,2.45342975]
[1757780267754,0.02703228,4624.1,4624.0,2.16262975]
[1757780267958,4.29603228,4624.1,4624.0,2.16262975]
[1757780268382,4.29603228,4624.1,4624.0,2.45342975]
[1757780268658,4.29603228,4624.1,4624.0,4.00012975]
[1757780268659,4.268,4624.1,4624.0,4.00012975]
[1757780269049,1.659,4624.2,4624.1,2.16258298]
[1757780269244,6.035,4624.2,4624.1,3.73378298]
[1757780269466,6.035,4624.2,4624.1,4.02978298]
[1757780270287,6.10832044,4624.2,4624.1,4.02978298]
[1757780271571,4.34032044,4624.2,4624.1,4.64902425]
[1757780271767,0.108,4624.7,4624.2,2.16253622]
[1757780271970,1.659,4625.0,4624.9,2.16220891]
[1757780272170,5.925,4625.0,4624.9,2.45820891]
[1757780272483,5.925,4625.0,4624.9,4.02940891]
[1757780272715,1.659,4625.0,4624.9,4.02940891]
[1757780273181,5.925,4625.0,4624.9,4.02940891]
[1757780273380,1.659,4625.0,4624.9,4.02940891]
[1757780273580,1.659,4625.0,4624.9,4.64987813]
[1757780273750,5.924,4625.0,4624.9,4.64987813]
[1757780274288,1.659,4625.5,4625.4,2.16197518]
[1757780274497,5.924,4625.5,4625.4,2.45797518]
[1757780274791,5.924,4625.5,4625.4,4.49117731]
[1757780275650,1.659,4625.5,4625.4,4.49117731]
[1757780275845,5.923,4625.5,4625.4,4.49117731]
[1757780277682,0.108,4625.6,4625.5,2.16192844]
[1757780277986,1.661,4626.2,4626.1,2.16164804]
[1757780278173,1.661,4626.2,4626.1,2.45764804]
[1757780278373,5.923,4626.2,4626.1,2.45764804]
[1757780278572,1.661,4626.2,4626.1,2.45764804]
[1757780278875,5.923,4626.2,4626.1,4.02884804]
[1757780279553,5.922,4626.2,4626.1,4.64790473]
[1757780280555,0.002,4626.2,4626.1,4.64790473]
[1757780281186,0.002,4626.2,4626.1,4.75590473]
[1757780282562,0.002,4626.2,4626.1,3.18470473]
[1757780283004,0.002,4626.2,4626.1,4.76887127]
[1757780283198,0.002,4626.2,4626.1,3.18470473]
[1757780283558,0.32092001,4626.2,4626.1,2.16164804]
[1757780283852,3.53122001,4626.2,4625.8,2.16178363]
[1757780284053,3.53122001,4626.2,4624.8,7.258]
[1757780284054,0.108,4626.0,4624.8,1.1308]
[1757780284291,0.108,4626.0,4624.3,0.4404]
[1757780284292,0.108,4625.5,4624.9,0.108]
[1757780284467,4.258,4625.4,4625.3,2.16202192]
[1757780284666,0.2919,4625.4,4625.3,2.16202192]
[1757780284882,0.002,4626.2,4625.5,2.16192844]
[1757780285065,0.108,4626.0,4625.8,2.16178823]
[1757780285262,0.7329,4625.9,4625.8,2.16178823]
[1757780285691,0.108,4626.0,4625.9,2.16174149]
[1757780286198,4.6569,4626.0,4625.9,2.16174149]
[1757780286982,6.50604447,4626.0,4624.7,0.4404]
[1757780287165,0.108,4625.5,4625.4,2.16196696]
[1757780287493,4.9879,4625.5,4625.4,2.16196696]
[1757780287660,0.2919,4625.5,4625.4,2.16196696]
[1757780287862,4.5469,4625.5,4625.4,2.16196696]
[1757780288066,1.84914447,4626.0,4625.8,2.16175366]
[1757780288263,4.5469,4625.9,4625.8,2.16175366]
[1757780289101,1.659,4626.1,4626.0,2.16169476]
[1757780289398,6.2059,4626.1,4626.0,2.16169476]
[1757780289594,0.108,4626.0,4625.6,2.16187104]
[1757780289783,0.02702176,4625.9,4625.7,2.16182954]
[1757780289989,0.02702176,4625.9,4624.4,0.4404]
[1757780289990,1.8432,4625.8,4624.0,1.1308]
[1757780290173,0.108,4624.8,4624.1,0.108]
[1757780290499,4.253,4624.7,4624.6,2.16234917]
[1757780290796,4.5449,4624.7,4624.6,2.16234917]
[1757780291363,4.5449,4624.7,4623.6,1.5712]
[1757780291364,4.5449,4624.7,4623.7,3.0]
[1757780291582,4.5449,4624.7,4624.6,2.16234917]
[1757780291782,1.659,4624.8,4624.7,2.16230241]
[1757780291978,1.767,4624.8,4624.7,2.16230241]
[1757780292180,4.809,4624.8,4624.7,2.45830241]
[1757780292503,4.809,4624.8,4624.7,2.16230241]
[1757780292676,1.659,4624.8,4624.7,4.04248531]
[1757780292877,5.911,4624.8,4624.7,4.04248531]
[1757780293299,1.659,4624.8,4624.7,4.04248531]
[1757780293466,5.911,4624.8,4624.7,4.02950241]
[1757780293673,1.767,4625.3,4625.2,2.16206866]
[1757780293886,6.018,4625.3,4625.2,2.16206866]
[1757780294286,6.018,4625.3,4625.2,2.45806866]
[1757780294569,1.767,4625.3,4625.2,4.02926866]
[1757780294800,1.659,4625.3,4625.2,4.64840941]
[1757780295108,5.909,4625.3,4625.2,3.07720941]
[1757780295319,5.909,4625.3,4625.2,2.16206866]
[1757780296104,5.909,4625.3,4625.2,2.45776866]
[1757780296291,5.909,4625.3,4625.2,4.09036866]
[1757780296694,1.659,4625.3,4625.2,4.09036866]
[1757780296894,4.249,4625.4,4625.3,2.16202192]
[1757780297070,0.07332044,4625.6,4625.5,2.16192844]
[1757780297477,0.108,4625.9,4625.8,2.16178823]
[1757780297681,0.002,4626.2,4626.1,2.16164804]
[1757780297877,0.002,4626.2,4626.1,2.45734804]
[1757780298077,0.002,4626.2,4626.1,4.08994804]
[1757780298280,0.002,4626.2,4626.1,4.72591467]
[1757780298612,4.0,4626.5,4626.4,2.16150786]
[1757780298828,0.07332044,4626.6,4626.5,2.16146114]
[1757780299050,0.002,4626.7,4626.6,2.16141442]
[1757780299174,0.002,4626.7,4626.6,4.08971442]
[1757780299375,0.002,4626.7,4626.6,4.72693284]
[1757780300702,0.002,4626.7,4626.6,4.25553284]
[1757780301707,1.493,4627.0,4626.9,2.16127428]
[1757780301909,4.248,4627.2,4627.1,2.16118086]
[1757780302210,0.002,4627.2,4627.1,2.16118086]
[1757780303014,0.002,4627.2,4627.1,2.45688086]
[1757780303314,0.7411,4627.2,4627.1,2.16118086]
[1757780303522,1.8541,4627.2,4626.1,2.26856663]
[1757780303684,0.02701476,4627.1,4627.0,2.16118118]
[1757780304014,1.4247,4627.2,4627.1,2.16118086]
[1757780304181,0.3117,4627.2,4627.1,2.16118086]
[1757780304615,0.0617,4627.2,4627.1,2.16118086]
[1757780306098,1.659,4627.7,4627.1,0.2957]
[1757780306341,0.02700834,4628.2,4628.1,2.16071389]
[1757780306490,4.5507,4628.2,4627.1,1.87958787]
[1757780306696,0.02700892,4628.1,4628.0,2.1607539]
[1757780307225,0.31910892,4628.1,4628.0,2.1607539]
[1757780307591,4.241,4628.2,4628.1,2.16071389]
[1757780307793,1.658,4628.4,4628.3,2.16062053]
[1757780308026,5.897,4628.4,4628.3,2.16062053]
[1757780308225,5.897,4628.4,4627.5,3.21748374]
[1757780308226,3.566,4628.1,4625.0,1.93768372]
[1757780308432,1.295,4627.6,4624.5,0.01836932]
[1757780308611,3.0,4627.4,4624.5,0.01837202]
[1757780308936,2.16159894,4626.3,4625.3,2.16201137]
[1757780309099,8.54013096,4626.2,4625.1,2.16206993]
[1757780309427,2.18867138,4626.1,4624.8,0.081]
[1757780309629,4.26502118,4626.0,4625.5,2.16188337]
[1757780309790,4.26502118,4626.0,4624.9,2.16218857]
[1757780309791,4.71952118,4626.0,4624.9,2.16218857]
[1757780309991,0.02702176,4625.9,4624.8,0.3891]
[1757780310191,0.02702176,4625.9,4625.5,2.16191374]
[1757780310404,0.48152176,4625.9,4625.3,2.16198463]
[1757780310601,0.48152176,4625.9,4624.8,0.3891]
[1757780310828,0.02702176,4625.9,4624.9,0.29814164]
[1757780311028,0.02702176,4625.9,4625.6,2.1618604]
[1757780311216,4.26502118,4626.0,4625.0,0.0183735]
[1757780311404,0.02702118,4626.0,4625.9,2.16174149]
[1757780311605,4.237,4626.0,4625.9,2.16174149]
[1757780311902,1.658,4626.2,4626.0,2.16169476]
[1757780312213,4.237,4626.1,4626.0,2.161691]
[1757780313016,4.2640206,4626.1,4626.0,2.161691]
[1757780313434,0.108,4626.0,4625.1,1.5945]
[1757780313739,0.108,4626.0,4625.9,2.16174149]
[1757780314316,1.5585,4626.0,4624.7,2.16228349]
[1757780314516,0.02702176,4625.9,4624.8,2.24324031]
[1757780315027,0.02702176,4625.9,4624.9,2.16219667]
[1757780315228,2.93351012,4625.9,4625.0,2.16215867]
[1757780315532,2.93351012,4625.9,4624.8,0.081]
[1757780315533,0.77174394,4625.9,4624.8,0.081]
[1757780315734,2.16183434,4625.8,4625.0,2.16215912]
[1757780315931,0.02702293,4625.7,4625.0,2.16215912]
[1757780316258,0.02702293,4625.7,4624.8,0.081]
[1757780316555,4.235,4625.6,4624.8,0.30533807]
[1757780316846,0.0270241,4625.5,4625.1,2.16207548]
[1757780317049,0.0270241,4625.5,4625.2,2.16202716]
[1757780317251,0.0270241,4625.5,4624.8,0.30533807]
[1757780317720,0.0270241,4625.5,4625.0,2.16216216]
[1757780317955,0.0270241,4625.5,4625.2,2.16202892]
[1757780318166,0.0270241,4625.5,4624.8,0.30533807]
[1757780318375,0.0270241,4625.5,4625.1,2.16211304]
[1757780318577,0.0270241,4625.5,4624.8,0.081]
[1757780318747,0.0270241,4625.5,4625.1,2.16210592]
[1757780318944,0.0374,4625.2,4624.8,0.081]
[1757780319144,2.16234133,4624.7,4624.3,0.001]
[1757780319444,4.47626349,4624.6,4623.2,0.43]
[1757780319646,4.47626349,4624.6,4623.2,3.43]
[1757780319647,4.26002994,4624.5,4623.2,3.43]
[1757780319853,4.26002994,4624.5,4623.7,2.16272676]
[1757780320155,4.26002994,4624.5,4624.1,2.1625802]
[1757780320378,0.2921,4624.2,4623.3,3.0]
[1757780320702,0.2921,4624.2,4623.4,3.0]
[1757780320860,0.2921,4624.2,4623.3,0.74865]
[1757780321063,0.2921,4624.2,4623.2,0.43]
[1757780321064,0.2921,4624.2,4623.8,2.16268671]
[1757780321264,0.2921,4624.2,4623.0,2.16309185]
[1757780321265,0.22103228,4624.1,4622.6,1.0565]
[1757780321464,2.38362246,4624.1,4622.6,1.0565]
[1757780321998,0.22103228,4624.1,4623.5,2.16284696]
[1757780322159,0.2912,4623.6,4622.6,3.21978197]
[1757780322360,4.232,4623.5,4622.6,3.21978197]
[1757780322575,4.232,4623.5,4623.4,2.16291041]
[1757780322772,4.232,4623.5,4623.3,2.16295321]
[1757780322976,4.232,4623.5,4623.4,2.16291041]
[1757780323496,4.5232,4623.5,4623.1,2.16304151]
[1757780323680,0.51173809,4624.1,4622.6,1.0565]
[1757780323885,4.25803287,4624.0,4623.2,2.16299996]
[1757780324061,4.25803287,4624.0,4622.8,0.08]
[1757780324262,4.25803287,4624.0,4623.4,2.16290165]
[1757780324557,5.27010371,4624.0,4623.4,2.16290165]
[1757780324759,5.27010371,4624.0,4623.1,2.16301648]
[1757780324760,0.108,4623.4,4623.1,2.16302825]
[1757780325088,0.108,4623.2,4623.1,1.0565]
[1757780325278,4.338,4623.6,4623.5,2.16286363]
[1757780325608,0.108,4623.6,4623.5,2.16286363]
[1757780326017,0.108,4623.6,4623.5,3.53516363]
[1757780326169,0.108,4623.6,4623.5,4.43544345]
[1757780326708,0.108,4623.6,4622.8,1.2464]
[1757780326859,0.108,4623.6,4623.5,2.16286363]
[1757780327060,0.02703228,4624.1,4624.0,2.16262975]
[1757780327279,0.108,4624.4,4623.8,2.1627233]
[1757780327493,0.108,4624.4,4624.3,2.16248945]
[1757780327878,0.108,4624.4,4624.3,4.00248945]
[1757780328265,0.108,4624.4,4624.3,3.53478945]
[1757780328575,0.108,4624.4,4624.3,2.47638945]
[1757780329903,0.108,4624.4,4624.3,2.16248945]
[1757780330773,0.1668,4624.4,4623.7,1.0954]
[1757780331075,0.108,4624.1,4624.0,2.16261943]
[1757780331275,4.334,4624.1,4624.0,2.16261943]
[1757780331508,0.108,4624.1,4624.0,2.47501943]
[1757780331680,1.659,4624.7,4624.6,2.16234917]
[1757780331880,1.659,4624.7,4624.6,3.57014917]
[1757780332191,1.659,4624.7,4624.6,2.47474917]
[1757780332367,1.659,4624.7,4624.0,0.57177211]
[1757780332368,1.659,4624.7,4624.5,2.16239044]
[1757780332704,1.659,4624.7,4624.6,2.16234917]
[1757780333186,0.108,4624.8,4624.7,2.16230241]
[1757780333504,0.108,4624.8,4624.7,3.72610241]
[1757780333687,4.225,4625.0,4624.9,2.16220891]
[1757780333888,0.108,4625.1,4625.0,2.16216216]
[1757780334077,0.108,4625.1,4625.0,3.72596216]
[1757780334400,0.108,4625.1,4625.0,4.03836216]
[1757780334600,0.108,4625.1,4625.0,2.47456216]
[1757780334821,0.108,4625.1,4625.0,2.16216216]
[1757780335018,0.108,4625.1,4625.0,2.47456216]
[1757780336173,0.108,4625.1,4625.0,2.16216216]
[1757780336758,0.61882644,4625.1,4624.9,2.16220706]
[1757780337024,0.61882644,4625.1,4624.5,2.16235401]
[1757780337025,0.108,4624.8,4624.5,2.16235401]
[1757780337224,0.108,4624.8,4624.5,2.16237343]
[1757780337429,0.02702644,4625.1,4624.8,2.16224892]
[1757780337725,4.222,4625.0,4624.8,2.16222543]
[1757780337943,4.222,4624.9,4624.4,2.16244269]
[1757780338116,4.33,4624.9,4624.8,2.16225566]
[1757780338319,0.108,4624.9,4624.8,4.03845566]
[1757780339645,4.221,4625.1,4624.8,4.03845566]
[1757780339928,4.329,4625.1,4625.0,2.16216216]
[1757780340140,0.108,4625.1,4625.0,2.16216216]
[1757780342456,0.108,4625.1,4625.0,3.56996216]
[1757780342657,1.659,4625.5,4625.2,2.16206866]
[1757780342862,0.108,4625.7,4625.6,2.1618817]
[1757780343028,0.108,4625.7,4625.6,4.0380817]
[1757780343555,0.108,4625.7,4625.6,3.5696817]
[1757780344075,0.1668,4625.7,4625.0,0.108]
[1757780344361,0.1668,4625.7,4625.6,2.1618817]
[1757780344548,0.0588,4625.7,4625.6,2.1618817]
[1757780345063,0.0588,4625.7,4624.9,1.0954]
[1757780345064,0.0588,4625.7,4625.2,2.1620378]
[1757780345267,0.0588,4625.7,4624.4,1.5638]
[1757780345268,0.45202352,4625.6,4624.4,1.5638]
[1757780345469,0.4287,4625.5,4623.9,1.0954]
[1757780345759,4.24202468,4625.4,4624.1,2.16258298]
[1757780346167,4.24202468,4625.4,4624.9,2.16218898]
[1757780346362,0.0588,4625.0,4624.9,2.16218898]
[1757780346965,1.659,4625.2,4625.1,2.16211541]
[1757780347151,0.0270241,4625.5,4625.1,2.16211541]
[1757780347356,0.02902293,4625.7,4625.4,2.16197518]
[1757780347849,0.02902293,4625.7,4625.6,2.4742817]
[1757780348053,0.002,4625.7,4625.6,2.1618817]
[1757780348262,0.002,4625.7,4623.7,3.82172933]
[1757780348263,1.79780224,4625.7,4625.1,2.16208421]
[1757780348565,1.79780224,4625.7,4624.0,4.213]
[1757780348566,0.002,4625.7,4625.6,2.1618817]
[1757780348775,4.215,4625.7,4625.6,2.4742817]
[1757780349180,0.002,4625.7,4625.6,7.0380817]
[1757780349563,0.002,4625.7,4625.0,1.0954]
[1757780349730,0.002,4625.7,4625.6,5.4742817]
[1757780349935,0.002,4625.7,4625.6,6.69428532]
[1757780350134,0.002,4625.7,4625.6,8.25808532]
[1757780350346,0.002,4625.7,4625.6,12.47008532]
[1757780351086,0.08,4626.8,4625.6,12.47008532]
[1757780351087,1e-08,4626.8,4626.7,2.16136771]
[1757780351290,1e-08,4626.8,4626.7,9.37236771]
[1757780351500,1e-08,4626.8,4626.7,12.56784891]
[1757780352046,1e-08,4626.8,4626.7,12.67273089]
[1757780352247,1e-08,4626.8,4626.7,43.46473089]
[1757780352944,0.002,4628.6,4628.5,2.16052716]
[1757780353341,0.002,4628.6,4628.5,6.56832716]
[1757780353542,0.002,4628.6,4628.5,11.24472716]
[1757780353967,0.02699492,4630.5,4629.0,2.16029379]
[1757780354151,0.5087,4630.8,4629.0,6.36829379]
[1757780354352,1.658,4630.6,4629.0,7.77609379]
[1757780354660,0.4287,4630.4,4629.0,7.03649379]
[1757780354834,0.02699609,4630.3,4629.0,7.03649379]
[1757780355236,0.108,4629.5,4629.0,7.03649379]
[1757780355448,0.0269955,4630.4,4629.0,7.03159379]
[1757780355654,0.4637,4630.5,4629.0,8.25159741]
[1757780355887,0.0269955,4630.4,4629.0,6.56809379]
[1757780356084,0.0269955,4630.4,4629.0,7.03159379]
[1757780356285,0.02699375,4630.7,4629.0,7.03159379]
[1757780356452,0.4637,4630.5,4629.0,7.03159379]
[1757780356653,0.0269955,4630.4,4629.0,6.56809379]
[1757780356983,0.02699492,4630.5,4629.0,7.03159379]
[1757780357282,0.02699492,4630.5,4629.0,7.82359379]
[1757780357483,0.5437,4630.8,4629.0,8.45059055]
[1757780357683,0.4637,4630.5,4629.0,8.45059055]
[1757780357883,0.0269955,4630.4,4629.0,8.45059055]
[1757780358187,0.0269955,4630.4,4629.0,5.47269379]
[1757780358355,0.4637,4630.1,4629.0,9.36429379]
[1757780358686,0.02699784,4630.0,4629.0,10.74489379]
[1757780358870,0.49069667,4630.2,4629.0,11.20839379]
[1757780359075,1.68499667,4630.2,4629.0,5.16029379]
[1757780359279,0.4637,4629.8,4629.0,5.16029379]
[1757780359861,0.2922,4629.1,4629.0,5.16029379]
[1757780362289,0.002,4629.1,4629.0,5.16029379]
[1757780362492,0.002,4629.1,4629.0,6.18886055]
[1757780362789,0.002,4629.1,4629.0,7.73646055]
[1757780363987,0.002,4629.1,4629.0,7.27296055]
[1757780365487,0.002,4629.1,4629.0,7.38096055]
[1757780365979,0.002,4629.1,4629.0,7.73646055]
[1757780366176,0.002,4629.1,4629.0,7.84446055]
[1757780366589,7.02,4630.4,4629.1,3.0]
[1757780366792,0.1072,4630.3,4630.2,2.15973392]
[1757780366966,0.002,4631.2,4630.7,2.15950072]
[1757780367165,0.4637,4631.1,4630.5,2.15957287]
[1757780367374,1.6916,4630.7,4630.6,2.15954381]
[1757780367692,0.8611,4630.7,4630.6,2.15954381]
[1757780368187,0.3974,4630.7,4630.6,2.15954381]
[1757780369155,0.1072,4630.7,4630.6,2.15954381]
[1757780369364,0.002,4631.2,4630.7,2.15950072]
[1757780370776,0.3702,4630.8,4630.7,2.15950072]
[1757780370972,0.8339,4630.8,4630.7,2.15950072]
[1757780371198,0.8339,4630.8,4630.6,2.15950678]
[1757780371386,0.3702,4630.8,4630.7,2.15950072]
[1757780371770,0.3702,4630.8,4630.6,2.15954592]
[1757780371982,0.4637,4630.7,4630.6,2.15954592]
[1757780372166,0.7539,4630.7,4630.6,2.15954592]
[1757780373393,0.2902,4630.7,4630.6,2.15954592]
[1757780373699,0.2902,4630.7,4630.0,3.0183159]
[1757780373904,0.2902,4630.7,4630.6,2.15954735]
[1757780374090,0.2902,4630.7,4630.0,3.0]
[1757780374266,0.08,4630.8,4630.6,2.15954735]
[1757780374469,0.08,4630.8,4630.7,2.15950072]
[1757780375004,0.08,4630.8,4630.7,2.45600072]
[1757780375204,0.08,4630.8,4630.7,4.00360072]
[1757780375595,0.08,4630.8,4630.7,7.00360072]
[1757780376518,0.08,4630.8,4630.7,8.33089076]
[1757780378211,0.08,4630.8,4630.7,12.51589076]
[1757780379192,1e-08,4630.8,4630.7,12.51589076]
[1757780379395,1e-08,4630.8,4630.7,12.62309076]
[1757780379599,1e-08,4630.8,4630.7,9.45170072]
[1757780379810,1e-08,4630.8,4630.7,9.74820072]
[1757780380179,1e-08,4630.8,4630.7,11.29580072]
[1757780381478,1e-08,4630.8,4630.7,11.18860072]
[1757780381685,1e-08,4630.8,4630.7,11.29580072]
[1757780381905,1e-08,4630.8,4630.7,12.64133553]
[1757780382292,1e-08,4630.8,4630.7,13.43333553]
[1757780382834,1e-08,4631.7,4631.6,2.15908109]
[1757780382981,1e-08,4631.7,4631.6,6.35838296]
[1757780383286,1e-08,4631.7,4631.6,11.18418109]
[1757780383481,1e-08,4631.7,4631.6,12.51851445]
[1757780384895,1e-08,4631.7,4631.6,12.05501445]
[1757780385299,1e-08,4631.7,4631.6,12.50081445]
[1757780386290,1e-08,4631.7,4631.6,12.05501445]
[1757780386496,1e-08,4631.7,4631.6,12.50081445]
[1757780386697,0.28610002,4632.8,4632.7,2.15856843]
[1757780386898,0.48453271,4632.8,4632.7,2.15856843]
[1757780387092,1.56833271,4632.8,4632.7,2.15856843]
[1757780387991,0.20933269,4632.8,4632.7,2.15856843]
[1757780388615,0.20933269,4632.8,4632.7,2.17685749]
[1757780388819,0.20933269,4632.8,4632.7,2.15856843]
[1757780389240,0.20933269,4632.8,4632.7,2.17685749]
[1757780389616,0.19843269,4632.8,4632.7,2.17685749]
[1757780389920,0.21043269,4632.8,4632.7,0.01828906]
[1757780390105,0.21043269,4632.8,4632.7,2.15856843]
[1757780390308,0.19843269,4632.8,4632.7,2.15856843]
[1757780390687,0.19843269,4632.8,4632.7,6.21387813]
[1757780391016,0.002,4633.3,4633.2,2.15833549]
[1757780391317,0.20039626,4633.3,4633.2,2.17661872]
[1757780391489,0.20169626,4633.3,4633.2,2.17661872]
[1757780391684,0.20169626,4633.3,4633.2,2.15833549]
[1757780392318,0.20039626,4633.3,4633.2,2.15833549]
[1757780393108,0.20039626,4633.3,4633.2,2.46363549]
[1757780393322,0.002,4633.3,4633.2,7.03223549]
[1757780393527,0.002,4633.3,4633.2,8.47549952]
[1757780393829,0.002,4633.3,4633.2,6.90689952]
[1757780394128,0.002,4633.3,4633.2,6.60159952]
[1757780394333,0.0033,4633.3,4633.2,5.15833549]
[1757780396034,0.002,4633.3,4633.2,5.15833549]
[1757780397214,0.002,4633.3,4633.2,5.46363549]
[1757780397423,0.002,4633.3,4633.2,5.15833549]
[1757780399059,0.0033,4633.3,4633.2,3.0]
[1757780399349,1.1573,4633.3,4633.2,5.15833549]
[1757780399709,0.002,4633.3,4633.2,5.15833549]
[1757780400333,0.0046,4633.3,4633.2,3.0]
[1757780400550,0.0046,4633.3,4633.2,5.15833549]
[1757780400857,0.002,4633.3,4633.2,6.27233549]
[1757780401063,0.002,4633.3,4633.2,6.57763549]
[1757780401419,0.002,4633.3,4633.2,7.03223549]
[1757780401940,0.002,4633.3,4633.2,5.91823549]
[1757780402556,0.002,4633.3,4633.2,7.83990172]
[1757780403817,0.002,4633.3,4633.2,11.99890172]
[1757780404936,0.002,4633.3,4633.2,7.83990172]
[1757780405133,1e-08,4633.8,4633.7,2.15810259]
[1757780405346,1e-08,4633.8,4633.7,5.15810259]
[1757780405661,1e-08,4633.8,4633.7,7.96361285]
[1757780406960,1e-08,4633.8,4633.7,8.75561285]
[1757780407734,0.002,4634.3,4634.2,2.94986975]
[1757780407939,0.002,4634.3,4634.2,10.10486975]
[1757780408143,0.002,4634.3,4634.2,11.97876975]
[1757780408468,1e-08,4634.8,4634.7,2.15763695]
[1757780408668,1e-08,4634.8,4634.7,9.31163695]
[1757780408980,1e-08,4634.8,4634.7,11.18553695]
[1757780409184,1e-08,4634.8,4634.7,11.97753695]
[1757780409334,1e-08,4634.8,4634.7,11.18553695]
[1757780409536,1e-08,4634.8,4634.7,11.4069256]
[1757780409736,1e-08,4634.8,4634.7,11.5141256]
[1757780410173,1e-08,4634.8,4634.7,11.62342677]
[1757780411364,1.76295824,4636.8,4634.7,11.62342677]
[1757780411365,0.08,4636.8,4636.7,2.15670627]
[1757780411563,0.2137,4636.8,4636.7,2.15670627]
[1757780411739,1.2353,4636.8,4636.7,2.15670627]
[1757780411957,1.2353,4636.8,4636.6,5.15674683]
[1757780412205,1.154,4636.7,4636.4,2.15680771]
[1757780412358,0.0026,4636.5,4636.2,5.15693887]
[1757780412554,1.1527,4636.4,4636.3,2.15689234]
[1757780412759,1.1566,4636.4,4636.3,2.15689234]
[1757780412988,0.0039,4636.4,4636.3,2.15689234]
[1757780415355,0.0039,4636.4,4636.3,2.17513949]
[1757780415881,0.0039,4636.4,4636.3,2.15689234]
[1757780416467,1.2046,4636.4,4635.3,4.145]
[1757780416669,0.02696115,4636.3,4636.0,2.15699171]
[1757780416870,1.09776115,4636.3,4635.5,4.145]
[1757780417084,0.02695882,4636.7,4635.7,2.15717151]
[1757780417301,0.02695882,4636.7,4636.5,2.15676069]
[1757780417481,0.02695882,4636.7,4635.9,3.0]
[1757780417794,0.02695882,4636.7,4635.9,5.15707845]
[1757780418007,0.02695882,4636.7,4636.6,2.15675279]
[1757780418203,0.08,4636.8,4636.7,2.15670627]
[1757780418361,0.179,4636.8,4636.7,2.15670627]
[1757780419196,0.179,4636.8,4635.5,2.15725462]
[1757780419197,0.792,4636.7,4635.5,2.15725462]
[1757780419511,0.1024,4635.6,4635.5,2.15725462]
[1757780419798,0.1024,4635.6,4635.1,4.142]
[1757780420295,1.6134,4635.6,4635.1,4.142]
[1757780420629,1.5379658,4635.5,4634.8,0.001]
[1757780420773,2.15735683,4635.4,4634.8,0.001]
[1757780421104,0.1058,4634.9,4634.8,0.001]
[1757780421263,2.26334385,4634.9,4634.8,0.001]
[1757780421463,3.79801314,4634.9,4634.8,0.001]
[1757780422276,1.64046929,4634.9,4634.8,0.001]
[1757780422617,0.8978,4634.9,4634.8,0.001]
[1757780422781,3.77104385,4634.9,4634.8,0.001]
[1757780423112,2.01757368,4634.9,4634.8,0.001]
[1757780423262,1.64046929,4634.9,4634.8,0.001]
[1757780423789,3.79801314,4634.9,4634.8,0.001]
[1757780424664,4.59001314,4634.9,4634.8,0.001]
[1757780424860,4.56304385,4634.9,4634.8,0.001]
[1757780426269,7.56304385,4634.9,4634.8,0.001]
[1757780426495,8.66575493,4634.9,4634.8,0.001]
[1757780427067,8.8636304,4634.9,4634.8,0.001]
[1757780427286,8.86356018,4634.9,4634.8,0.001]
[1757780428171,2.15847525,4632.9,4632.8,0.08]
[1757780428405,7.97545619,4632.9,4632.8,0.08]